bitfinex/quotes_SOLUSD_20260208
["timestamp","ask_amount","ask_price","bid_price","bid_amount"]
[1770579578253,4.434285,88.337,88.269,5.13032502]
[1770579578254,4.434285,88.329,88.294,4.05527135]
[1770579578570,4.434285,88.319,88.287,11.32658587]
[1770579579391,4.434285,88.319,88.291,4.05527135]
[1770579579561,4.434285,88.331,88.291,4.05527135]
[1770579580772,4.434285,88.329,88.286,0.3]
[1770579580977,4.434285,88.319,88.286,0.3]
[1770579581854,4.434285,88.319,88.283,4.05527135]
[1770579581855,4.434285,88.317,88.283,4.05527135]
[1770579582267,4.434285,88.317,88.284,4.05527135]
[1770579583378,4.434285,88.317,88.288,4.05527135]
[1770579584277,4.434285,88.315,88.28,4.05527135]
[1770579584860,4.434285,88.315,88.27,13.73908705]
[1770579584861,4.434285,88.309,88.269,11.32891482]
[1770579585060,4.434285,88.309,88.27,4.2904749]
[1770579585754,4.07383699,88.307,88.27,4.2904749]
[1770579586679,0.72100001,88.323,88.26,13.73908705]
[1770579586680,4.794837,88.322,88.291,4.2904749]
[1770579587782,4.07383699,88.32,88.291,4.2904749]
[1770579588176,4.07383699,88.32,88.284,15.6175254]
[1770579589287,4.07383699,88.32,88.284,4.2904749]
[1770579589887,4.07383699,88.318,88.284,4.2904749]
[1770579590585,4.07383699,88.318,88.278,11.32772462]
[1770579590882,4.07383699,88.309,88.278,11.32772462]
[1770579592175,4.07383699,88.308,88.278,11.32772462]
[1770579592377,4.07383699,88.308,88.278,15.61819952]
[1770579592780,4.07383699,88.308,88.279,4.2904749]
[1770579595397,4.07383699,88.318,88.281,4.2904749]
[1770579597493,4.07383699,88.318,88.291,4.2904749]
[1770579598997,4.07383699,88.316,88.283,0.3]
[1770579600201,4.07383699,88.314,88.278,4.2904749]
[1770579600706,4.07383699,88.309,88.265,0.3]
[1770579600909,4.07383699,88.314,88.271,4.2904749]
[1770579601110,11.322503,88.32,88.291,4.2904749]
[1770579601406,4.07383699,88.321,88.291,4.2904749]
[1770579602194,0.72100001,88.322,88.291,4.2904749]
[1770579602400,0.72100001,88.322,88.262,0.3]
[1770579602401,4.07383699,88.359,88.311,4.2904749]
[1770579602702,4.07383699,88.359,88.321,4.2904749]
[1770579603704,4.07383699,88.357,88.321,4.2904749]
[1770579604306,4.07383699,88.357,88.322,15.61268227]
[1770579604499,4.07383699,88.357,88.323,4.2904749]
[1770579605189,4.07383699,88.357,88.317,11.32277375]
[1770579605702,4.07383699,88.357,88.318,4.2904749]
[1770579606507,4.07383699,88.349,88.3,18.02956195]
[1770579606705,4.07383699,88.309,88.276,4.2904749]
[1770579607299,4.07383699,88.309,88.275,11.32818197]
[1770579608413,4.07383699,88.307,88.269,11.32900565]
[1770579608617,4.07383699,88.307,88.27,4.2904749]
[1770579608911,4.07383699,88.289,88.249,4.2904749]
[1770579609118,4.07383699,88.305,88.261,4.2904749]
[1770579609295,4.07383699,88.305,88.269,11.32900565]
[1770579609496,4.07383699,88.299,88.259,11.3302384]
[1770579609696,39.63400823,88.308,88.252,4.2904749]
[1770579609697,4.07383699,88.289,88.252,15.62159555]
[1770579610099,4.07383699,88.289,88.253,4.2904749]
[1770579610700,4.07383699,88.287,88.253,4.2904749]
[1770579611602,4.07383699,88.285,88.253,4.2904749]
[1770579611799,4.07383699,88.285,88.255,4.2904749]
[1770579612312,15.39985308,88.293,88.255,4.2904749]
[1770579612496,4.07383699,88.293,88.255,4.2904749]
[1770579612695,4.07383699,88.3,88.261,4.2904749]
[1770579612905,11.32473058,88.303,88.261,4.2904749]
[1770579613116,7.127389,88.31,88.271,4.2904749]
[1770579613615,7.127389,88.31,88.272,11.32862062]
[1770579613915,7.127389,88.31,88.273,4.2904749]
[1770579616519,7.127389,88.31,88.281,4.23421991]
[1770579617503,56.85731398,88.415,88.274,39.64927384]
[1770579617504,4.35792372,88.34,88.3,13.73908705]
[1770579617816,4.35792372,88.351,88.32,13.73908705]
[1770579618114,7.13693717,88.352,88.32,13.73908705]
[1770579618318,7.13693717,88.352,88.33,13.73908705]
[1770579619114,7.13693717,88.352,88.331,11.32105376]
[1770579621224,4.35792372,88.35,88.31,13.73908705]
[1770579621429,4.35792372,88.35,88.32,13.73908705]
[1770579623229,4.35792372,88.37,88.33,13.73908705]
[1770579623722,4.35792372,88.37,88.34,13.73908705]
[1770579624129,4.35792372,88.37,88.33,13.73908705]
[1770579624915,4.35792372,88.369,88.321,39.62817449]
[1770579625315,4.35792372,88.369,88.33,13.73908705]
[1770579627605,4.35792372,88.369,88.331,39.62368816]
[1770579630508,4.35792372,88.369,88.34,13.73908705]
[1770579631023,4.35792372,88.369,88.332,0.3]
[1770579632616,4.35792372,88.369,88.333,39.62279102]
[1770579632823,4.35792372,88.369,88.333,11.32079743]
[1770579633527,4.35792372,88.367,88.333,11.32079743]
[1770579635317,4.35792372,88.367,88.33,13.73908705]
[1770579636726,4.35792372,88.367,88.331,39.62368816]
[1770579640010,4.35792372,88.366,88.331,39.62368816]
[1770579640428,4.35792372,88.389,88.35,13.73908705]
[1770579641027,4.35792372,88.389,88.34,13.71561734]
[1770579641332,4.35792372,88.389,88.341,0.02202695]
[1770579642328,4.35792372,88.389,88.351,0.0255833]
[1770579643123,4.35792372,88.389,88.343,0.0255833]
[1770579643325,4.35792372,88.388,88.343,0.0255833]
[1770579645732,4.35792372,88.388,88.344,0.3]
[1770579647830,4.35792372,88.388,88.35,13.73611386]
[1770579648022,4.35792372,88.388,88.36,13.73611386]
[1770579648222,4.37071537,88.4,88.361,0.02049652]
[1770579648525,4.37071537,88.4,88.37,13.71561734]
[1770579649114,4.37071537,88.4,88.371,0.0237766]
[1770579651541,4.37071537,88.4,88.371,11.33970603]
[1770579652050,4.37071537,88.4,88.371,11.31592943]
[1770579652336,4.37071537,88.4,88.372,0.03349865]
[1770579655938,4.37071537,88.406,88.381,0.04622476]
[1770579656140,13.71561734,88.41,88.374,0.04622476]
[1770579656321,4.37071537,88.409,88.373,0.34622476]
[1770579656738,4.37071537,88.409,88.374,0.04931546]
[1770579657539,4.37071537,88.409,88.381,0.05237065]
[1770579658129,4.37071537,88.409,88.382,0.05237065]
[1770579660954,4.37071537,88.409,88.381,9.78987312]
[1770579661126,4.37071537,88.389,88.327,0.0613273]
[1770579661326,4.37071537,88.389,88.34,13.77986187]
[1770579661626,4.37071537,88.389,88.351,0.06424453]
[1770579662034,4.37071537,88.389,88.358,11.31752283]
[1770579662228,4.37071537,88.389,88.353,11.31818125]
[1770579662646,4.37071537,88.389,88.361,11.31711174]
[1770579663034,4.37071537,88.387,88.347,28.29719155]
[1770579663827,5.12152351,88.38,88.347,28.29719155]
[1770579664051,4.37071537,88.379,88.341,11.31977224]
[1770579664554,4.37071537,88.359,88.341,11.31977224]
[1770579666259,4.37071537,88.359,88.34,5.12152351]
[1770579666549,4.37071537,88.359,88.325,0.0783357]
[1770579666936,4.37071537,88.359,88.33,5.19985921]
[1770579667352,4.37071537,88.359,88.331,0.08105757]
[1770579667747,4.37071537,88.359,88.323,0.08105757]
[1770579667961,4.37071537,88.359,88.325,0.08105757]
[1770579668142,4.37071537,88.359,88.331,0.08105757]
[1770579668447,4.37071537,88.359,88.332,0.08374818]
[1770579670849,4.37071537,88.359,88.326,28.30422501]
[1770579671050,5.12152351,88.4,88.32,11.32244593]
[1770579671051,4.37071537,88.349,88.32,11.32244593]
[1770579673355,4.37071537,88.339,88.302,28.31169787]
[1770579673558,4.37071537,88.339,88.302,28.40844257]
[1770579673755,4.37071537,88.339,88.303,0.0967447]
[1770579677056,4.37071537,88.339,88.302,28.31169787]
[1770579677057,4.37071537,88.349,88.311,0.10901177]
[1770579677462,4.37071537,88.349,88.305,0.1113813]
[1770579677663,4.37071537,88.339,88.305,0.1113813]
[1770579677861,4.37071537,88.339,88.306,0.1113813]
[1770579680156,4.37071537,88.339,88.308,11.44004137]
[1770579680558,4.37071537,88.339,88.308,11.44233018]
[1770579680757,4.37071537,88.339,88.309,0.11832783]
[1770579681842,4.37071537,88.329,88.292,0.12059035]
[1770579682055,4.37071537,88.329,88.308,11.32400235]
[1770579683355,4.37071537,88.329,88.293,0.12282689]
[1770579685260,4.37071537,88.329,88.292,11.32605445]
[1770579686157,4.37071537,88.327,88.292,11.32605445]
[1770579686364,4.37071537,88.319,88.292,11.32605445]
[1770579686863,4.37071537,88.319,88.282,0.3]
[1770579687057,4.37071537,88.319,88.29,11.32628343]
[1770579688454,4.37071537,88.319,88.281,28.45008864]
[1770579690269,4.37071537,88.319,88.281,28.31856957]
[1770579690964,4.37071537,88.319,88.281,28.45838831]
[1770579691168,4.37071537,88.319,88.282,0.13981874]
[1770579692251,56.04526791,88.389,88.281,28.31856957]
[1770579692252,4.37071537,88.354,88.311,0.14183441]
[1770579692455,4.37071537,88.354,88.32,5.12152351]
[1770579693769,4.37071537,88.354,88.321,11.32233557]
[1770579693963,4.37071537,88.349,88.321,11.32233557]
[1770579694166,4.37071537,88.349,88.322,0.14579658]
[1770579694371,4.37071537,88.339,88.311,11.3236108]
[1770579694870,4.37071537,88.339,88.296,28.46143516]
[1770579695053,4.37071537,88.339,88.3,5.12152351]
[1770579695255,4.37071537,88.339,88.315,11.32305216]
[1770579696865,4.37071537,88.339,88.301,11.32490005]
[1770579701681,4.37071537,88.339,88.302,0.16076072]
[1770579702458,4.37071537,88.339,88.311,0.16253586]
[1770579703579,4.37071537,88.339,88.313,0.16429061]
[1770579704274,4.37071537,88.348,88.313,0.16429061]
[1770579704578,11.31827746,88.353,88.313,0.16429061]
[1770579704877,4.37071537,88.352,88.313,0.16429061]
[1770579707580,4.37071537,88.359,88.321,0.17276663]
[1770579708489,4.37071537,88.339,88.314,11.323233]
[1770579709269,4.37071537,88.339,88.309,11.32379457]
[1770579709677,4.37071537,88.339,88.301,39.63715019]
[1770579716693,4.37071537,88.339,88.302,0.18684263]
[1770579716900,4.37071537,88.339,88.3,5.12710741]
[1770579716901,4.37071537,88.339,88.305,0.18684263]
[1770579717775,4.37071537,88.339,88.303,39.63625244]
[1770579718177,4.37071537,88.339,88.304,0.3]
[1770579718378,4.37071537,88.337,88.304,0.3]
[1770579718589,4.37071537,88.337,88.303,39.43625244]
[1770579718901,4.37071537,88.329,88.291,11.32618273]
[1770579720078,4.37071537,88.329,88.291,11.5174014]
[1770579720583,4.37071537,88.329,88.291,11.32618273]
[1770579720887,4.37071537,88.329,88.27,5.13032502]
[1770579720888,4.37071537,88.299,88.24,0.2]
[1770579721080,4.37071537,88.279,88.248,11.33163264]
[1770579723004,4.37071537,88.269,88.241,11.33260049]
[1770579723498,4.37071537,88.259,88.24,0.2]
[1770579723709,4.17071537,88.249,88.22,0.2]
[1770579724002,4.12651196,88.229,88.205,11.33719371]
[1770579724592,4.12651196,88.229,88.198,11.33809173]
[1770579724802,4.12651196,88.219,88.191,11.33902552]
[1770579724997,4.12651196,88.219,88.129,104.69959055]
[1770579724998,4.12651196,88.199,88.154,1.19818333]
[1770579726101,4.12651196,88.199,88.15,5.12710741]
[1770579726102,4.12651196,88.226,88.181,1.19952863]
[1770579726903,4.12651196,88.226,88.182,11.3401828]
[1770579727303,7.13345275,88.227,88.182,11.3401828]
[1770579727304,4.12651196,88.219,88.182,11.3401828]
[1770579728911,4.12651196,88.209,88.171,11.34159757]
[1770579730285,7.13345275,88.227,88.171,11.34159757]
[1770579730286,4.12651196,88.226,88.191,1.20933885]
[1770579731502,4.12651196,88.226,88.193,1.20933885]
[1770579732804,4.12651196,88.245,88.211,1.2150767]
[1770579733007,4.12651196,88.245,88.21,13.76901692]
[1770579733201,4.12651196,88.245,88.201,1.2150767]
[1770579733409,4.12651196,88.229,88.202,11.33761139]
[1770579735304,4.12651196,88.229,88.192,29.57340461]
[1770579736608,4.12651196,88.229,88.192,39.68613933]
[1770579736904,4.08295022,88.219,88.192,39.68613933]
[1770579743997,4.08295022,88.219,88.193,1.24930867]
[1770579744492,4.08295022,88.239,88.2,13.76901692]
[1770579744697,0.73699998,88.245,88.211,1.25173507]
[1770579744898,4.08295022,88.244,88.201,1.25173507]
[1770579746417,4.08295022,88.244,88.203,1.25413361]
[1770579747714,4.08295022,88.244,88.21,13.76901692]
[1770579748919,4.08295022,88.244,88.21,5.13776288]
[1770579749523,28.32439811,88.264,88.204,11.33735431]
[1770579749524,4.08295022,88.252,88.221,1.25856926]
[1770579749894,4.08295022,88.252,88.222,11.33504114]
[1770579750214,4.08295022,88.252,88.223,1.25856926]
[1770579751514,4.08295022,88.252,88.224,11.33478418]
[1770579751717,4.08295022,88.259,88.23,5.13776288]
[1770579751916,4.08295022,88.279,88.24,5.13776288]
[1770579753004,4.08295022,88.278,88.24,5.13776288]
[1770579753514,4.08295022,88.276,88.241,11.33260049]
[1770579755030,4.08295022,88.276,88.25,5.13776288]
[1770579755230,4.08295022,88.276,88.251,1.25856926]
[1770579756035,7.14031105,88.281,88.261,1.25856926]
[1770579757629,7.14031105,88.281,88.26,5.13776288]
[1770579757827,7.14031105,88.281,88.261,11.33003251]
[1770579760127,7.14031105,88.281,88.261,39.6551138]
[1770579762327,7.14031105,88.281,88.226,5.36086188]
[1770579762328,4.08295022,88.279,88.23,5.13141687]
[1770579762735,4.08295022,88.279,88.231,1.25856926]
[1770579762944,4.08295022,88.269,88.24,11.33272266]
[1770579764240,4.08295022,88.269,88.234,28.33347171]
[1770579771539,4.08295022,88.269,88.234,29.59204097]
[1770579771737,4.36788172,88.267,88.234,1.25856926]
[1770579773743,4.36788172,88.267,88.235,11.33337111]
[1770579779737,4.36788172,88.267,88.236,1.25856926]
[1770579782452,4.36788172,88.267,88.237,11.33311422]
[1770579782654,7.12853727,88.28,88.251,1.25856926]
[1770579782948,4.36788172,88.292,88.261,1.25856926]
[1770579783938,4.36788172,88.279,88.237,39.66589978]
[1770579784351,4.36788172,88.259,88.232,11.33370462]
[1770579784851,4.36788172,88.259,88.219,5.13032502]
[1770579785146,4.36788172,88.259,88.231,1.25856926]
[1770579785927,4.36788172,88.259,88.221,1.25856926]
[1770579786144,4.36788172,88.259,88.217,1.25856926]
[1770579786931,4.36788172,88.249,88.218,39.67444285]
[1770579788551,4.36788172,88.249,88.221,1.25856926]
[1770579791956,4.36788172,88.249,88.223,1.25856926]
[1770579794357,4.36788172,88.249,88.225,1.25856926]
[1770579796658,4.36788172,88.249,88.227,1.25856926]
[1770579798350,4.36788172,88.249,88.228,11.33427029]
[1770579804143,4.36788172,88.249,88.228,1.25856926]
[1770579805644,4.36788172,88.249,88.229,12.59271109]
[1770579806343,4.36788172,88.249,88.23,1.25856926]
[1770579806544,7.21999776,88.276,88.23,1.25856926]
[1770579806545,4.33078291,88.265,88.231,1.25856926]
[1770579806853,7.21999776,88.276,88.251,1.25856926]
[1770579808165,7.21999776,88.276,88.253,1.25856926]
[1770579811963,7.21999776,88.276,88.254,11.33093117]
[1770579812268,7.21999776,88.276,88.255,1.25856926]
[1770579813164,4.33078291,88.275,88.256,11.3306744]
[1770579815165,4.33078291,88.275,88.252,28.3279699]
[1770579815676,4.33078291,88.289,88.261,1.25856926]
[1770579816269,4.33078291,88.289,88.26,5.13141687]
[1770579817574,4.33078291,88.289,88.262,1.25856926]
[1770579818659,7.28581951,88.31,88.28,5.13141687]
[1770579819379,7.28581951,88.31,88.28,9.35631832]
[1770579819976,7.28581951,88.31,88.281,11.3274657]
[1770579820651,4.33078291,88.309,88.281,11.3274657]
[1770579821881,4.33078291,88.299,88.268,11.32907999]
[1770579822179,4.33078291,88.299,88.254,28.32701634]
[1770579822378,4.33078291,88.299,88.254,32.55191779]
[1770579822564,4.33078291,88.299,88.255,4.22490145]
[1770579822975,4.33078291,88.299,88.26,5.12967473]
[1770579823167,4.33078291,88.299,88.26,9.35457618]
[1770579823477,4.33078291,88.299,88.268,11.32907999]
[1770579824557,4.33078291,88.299,88.261,11.33003251]
[1770579827981,4.33078291,88.299,88.261,15.76177334]
[1770579828658,4.33078291,88.299,88.254,32.75875717]
[1770579828864,4.27349477,88.279,88.251,11.33131635]
[1770579829360,4.27349477,88.279,88.252,4.43174083]
[1770579829778,4.27349477,88.307,88.261,4.43174083]
[1770579830282,5.12967473,88.3,88.261,4.43174083]
[1770579830481,4.27349477,88.299,88.261,4.43174083]
[1770579830986,4.27349477,88.297,88.261,4.43174083]
[1770579832286,4.27349477,88.295,88.262,15.76164497]
[1770579832490,4.27349477,88.295,88.263,4.43174083]
[1770579834992,4.27349477,88.289,88.251,39.65960724]
[1770579835177,4.27349477,88.289,88.251,11.33131635]
[1770579835491,4.27349477,88.289,88.251,15.76305718]
[1770579835792,4.27349477,88.279,88.251,11.33131635]
[1770579837085,4.27349477,88.279,88.25,4.43174083]
[1770579840094,4.27349477,88.279,88.244,4.43174083]
[1770579842991,4.27349477,88.279,88.246,4.43174083]
[1770579844295,4.27349477,88.279,88.248,4.43174083]
[1770579847896,4.27349477,88.279,88.25,4.43174083]
[1770579848490,4.27349477,88.284,88.25,4.43174083]
[1770579848699,11.32610682,88.292,88.261,4.43174083]
[1770579849197,5.12967473,88.29,88.254,4.43174083]
[1770579849388,4.27349477,88.289,88.254,4.43174083]
[1770579850095,4.27349477,88.287,88.254,4.43174083]
[1770579855397,3.93139833,88.279,88.253,11.33105604]
[1770579855589,3.93139833,88.279,88.248,11.33157567]
[1770579857599,3.93139833,88.279,88.249,4.29160338]
[1770579858794,3.93139833,88.277,88.249,4.29160338]
[1770579862100,3.93139833,88.277,88.25,11.33144475]
[1770579862504,3.93139833,88.277,88.251,4.29160338]
[1770579865601,3.93139833,88.275,88.251,4.29160338]
[1770579868307,3.93139833,88.269,88.24,15.62426424]
[1770579869003,3.93139833,88.269,88.24,11.33266086]
[1770579869203,3.93139833,88.269,88.241,4.29160338]
[1770579871089,3.93139833,88.259,88.227,4.29160338]
[1770579871295,3.93139833,88.259,88.234,4.29160338]
[1770579871619,3.93139833,88.27,88.234,4.29160338]
[1770579872107,3.93139833,88.281,88.251,4.29160338]
[1770579877102,3.93139833,88.279,88.252,4.29160338]
[1770579883923,3.93139833,88.279,88.254,4.29160338]
[1770579895926,4.20914927,88.299,88.256,3.96079535]
[1770579896132,4.20914927,88.299,88.261,3.96079535]
[1770579896326,4.20914927,88.308,88.271,3.96079535]
[1770579896633,7.31121462,88.309,88.291,3.96079535]
[1770579899534,7.31121462,88.309,88.293,3.96079535]
[1770579899733,0.1,88.32,88.307,3.96079535]
[1770579900321,0.1,88.32,88.3,5.13394059]
[1770579900322,4.20914927,88.335,88.311,3.96079535]
[1770579900824,4.20914927,88.343,88.311,3.96079535]
[1770579901024,7.57920097,88.349,88.321,3.96079535]
[1770579901540,4.20914927,88.348,88.323,3.96079535]
[1770579902234,4.20914927,88.347,88.3,3.96079535]
[1770579902433,4.20914927,88.329,88.299,11.32511747]
[1770579902750,4.20914927,88.329,88.299,15.28591282]
[1770579903037,4.20914927,88.329,88.304,3.96079535]
[1770579903445,4.20914927,88.329,88.298,15.28606709]
[1770579903950,4.20914927,88.329,88.299,3.96079535]
[1770579904124,4.20914927,88.329,88.27,5.13032502]
[1770579904125,4.20914927,88.319,88.289,15.28722942]
[1770579905444,4.20914927,88.319,88.29,3.96079535]
[1770579907245,7.52427021,88.327,88.292,3.96079535]
[1770579907427,7.52427021,88.327,88.301,3.96079535]
[1770579907629,4.20914927,88.326,88.293,3.96079535]
[1770579908331,7.52427021,88.327,88.301,3.96079535]
[1770579908729,7.52427021,88.327,88.311,3.96079535]
[1770579909045,4.20914927,88.341,88.313,3.96079535]
[1770579909347,4.20914927,88.339,88.313,3.96079535]
[1770579909645,4.20914927,88.339,88.311,11.32356182]
[1770579909847,4.20914927,88.339,88.311,15.28435717]
[1770579910229,4.20914927,88.339,88.312,3.96079535]
[1770579910428,4.20914927,88.339,88.294,28.31430107]
[1770579910429,4.20914927,88.339,88.306,11.32424566]
[1770579910632,4.20914927,88.339,88.312,11.32348944]
[1770579911850,4.20914927,88.339,88.312,3.96079535]
[1770579913625,4.20914927,88.339,88.313,15.28415657]
[1770579914645,4.20914927,88.338,88.307,11.32403942]
[1770579914950,4.20914927,88.338,88.308,3.96079535]
[1770579915342,4.20914927,88.338,88.313,3.76458258]
[1770579915541,4.20914927,88.338,88.314,11.323233]
[1770579917258,4.20914927,88.338,88.315,3.76458258]
[1770579917846,4.03315027,88.34,88.315,3.76458258]
[1770579919072,4.03315027,88.339,88.31,3.76458258]
[1770579919765,4.03315027,88.339,88.314,3.76458258]
[1770579920273,4.03315027,88.339,88.317,3.76458258]
[1770579920467,4.03315027,88.351,88.321,3.76458258]
[1770579920783,7.46827863,88.352,88.331,3.76458258]
[1770579920954,7.46827863,88.352,88.333,3.76458258]
[1770579922173,4.03315027,88.351,88.333,3.76458258]
[1770579922576,4.03315027,88.351,88.331,11.32102206]
[1770579925183,4.03315027,88.351,88.331,3.76458258]
[1770579926468,4.03315027,88.351,88.333,3.76458258]
[1770579927771,0.1,88.36,88.341,3.76458258]
[1770579928478,4.03315027,88.359,88.342,3.76458258]
[1770579929270,4.03315027,88.359,88.33,11.3211317]
[1770579929777,5.13394059,88.35,88.307,3.76458258]
[1770579930078,4.03315027,88.339,88.301,3.76458258]
[1770579930469,4.03315027,88.337,88.301,3.76458258]
[1770579930985,11.32015667,88.338,88.29,11.32625912]
[1770579930986,4.03315027,88.329,88.29,11.32625912]
[1770579931165,4.03315027,88.319,88.29,11.32625912]
[1770579932365,4.03315027,88.317,88.278,15.09238764]
[1770579932568,4.03315027,88.317,88.279,3.76458258]
[1770579932768,4.03315027,88.317,88.283,3.76458258]
[1770579935190,4.03315027,88.315,88.285,3.76458258]
[1770579936393,4.03315027,88.315,88.287,3.76458258]
[1770579938167,4.03315027,88.315,88.289,3.76458258]
[1770579940686,4.03315027,88.315,88.283,3.76458258]
[1770579942291,4.03315027,88.313,88.281,11.3274657]
[1770579942583,4.03315027,88.309,88.281,11.3274657]
[1770579943891,4.03315027,88.299,88.261,3.76458258]
[1770579944081,4.03315027,88.299,88.262,3.76458258]
[1770579946687,3.82154666,88.289,88.262,3.76458258]
[1770579947187,5.12994728,88.27,88.243,3.58043087]
[1770579947493,3.82154666,88.269,88.237,3.58043087]
[1770579948072,3.82154666,88.259,88.229,3.58043087]
[1770579948695,3.82154666,88.259,88.231,11.33380324]
[1770579948900,3.82154666,88.259,88.232,3.58043087]
[1770579951801,3.69008186,88.259,88.232,3.58043087]
[1770579953588,3.69008186,88.259,88.234,3.58043087]
[1770579953798,3.82154666,88.265,88.234,3.58043087]
[1770579954002,3.82154666,88.279,88.243,3.58043087]
[1770579954382,3.82154666,88.277,88.243,3.58043087]
[1770579956703,3.82154666,88.275,88.245,3.58043087]
[1770579958691,3.82154666,88.275,88.247,3.58043087]
[1770579958895,3.82154666,88.294,88.261,3.58043087]
[1770579962012,3.82154666,88.294,88.271,3.58043087]
[1770579962307,3.82154666,88.3,88.28,5.12994728]
[1770579962805,3.82154666,88.3,88.281,3.58043087]
[1770579963407,3.82154666,88.3,88.283,3.58043087]
[1770579963595,3.82154666,88.319,88.283,3.58043087]
[1770579963795,3.82154666,88.319,88.291,3.58043087]
[1770579965604,3.82154666,88.318,88.286,11.32678915]
[1770579965902,3.82154666,88.309,88.286,11.32678915]
[1770579966303,11.32259196,88.319,88.271,28.32160723]
[1770579966304,3.82154666,88.299,88.277,11.32793484]
[1770579967706,3.82154666,88.299,88.271,3.58043087]
[1770579970513,3.82154666,88.299,88.273,3.58043087]
[1770579970715,3.82154666,88.305,88.281,3.58043087]
[1770579971005,3.82154666,88.319,88.281,3.58043087]
[1770579972206,3.82154666,88.319,88.282,39.64568088]
[1770579972400,3.82154666,88.319,88.283,3.58043087]
[1770579973409,3.82154666,88.319,88.291,3.58043087]
[1770579974691,3.82154666,88.319,88.292,11.32605445]
[1770579974895,3.82154666,88.319,88.293,3.59858814]
[1770579975405,3.82154666,88.319,88.292,11.32605445]
[1770579976624,3.62622098,88.309,88.272,11.32862062]
[1770579976996,3.62622098,88.309,88.272,14.83230953]
[1770579977608,3.62622098,88.309,88.273,3.50368891]
[1770579981921,3.62622098,88.308,88.275,3.50368891]
[1770579983220,3.62622098,88.308,88.277,3.50368891]
[1770579986841,3.62622098,88.306,88.276,11.32810729]
[1770579987942,3.62622098,88.306,88.266,3.50368891]
[1770579988618,3.62622098,88.304,88.266,3.50368891]
[1770579990440,3.62622098,88.304,88.271,3.50368891]
[1770579996633,3.62622098,88.304,88.273,3.50368891]
[1770579999852,3.62622098,88.31,88.281,3.50368891]
[1770580002540,3.62622098,88.31,88.282,11.32733739]
[1770580002733,3.62622098,88.31,88.283,3.50368891]
[1770580004140,3.62622098,88.31,88.282,11.32733739]
[1770580005850,3.62622098,88.31,88.27,5.12852296]
[1770580005851,3.52465977,88.308,88.277,11.32795426]
[1770580007159,3.52465977,88.308,88.277,3.52077501]
[1770580007338,3.52465977,88.308,88.281,3.52077501]
[1770580007846,3.52465977,88.315,88.281,3.52077501]
[1770580011759,3.52465977,88.315,88.283,3.52077501]
[1770580012459,3.52465977,88.314,88.283,3.52077501]
[1770580012644,3.52465977,88.309,88.282,11.32733739]
[1770580014155,3.52465977,88.309,88.25,5.13032502]
[1770580014156,3.52465977,88.299,88.26,5.12852296]
[1770580014355,3.52465977,88.299,88.267,11.32926115]
[1770580014652,3.52465977,88.299,88.271,11.3286696]
[1770580015946,3.52465977,88.297,88.266,3.52077501]
[1770580016858,3.52465977,88.297,88.271,3.52077501]
[1770580019742,3.52465977,88.297,88.273,3.52077501]
[1770580021162,3.52465977,88.297,88.275,3.52077501]
[1770580025063,3.52465977,88.313,88.281,3.52077501]
[1770580025261,3.52465977,88.313,88.277,3.52077501]
[1770580025843,3.52465977,88.313,88.28,5.12852296]
[1770580026045,3.52465977,88.313,88.281,3.52077501]
[1770580027370,3.52465977,88.313,88.282,11.32733739]
[1770580027765,3.52465977,88.313,88.283,3.52077501]
[1770580033572,3.52465977,88.313,88.284,14.84785579]
[1770580033775,3.52465977,88.313,88.285,3.52077501]
[1770580034578,3.52465977,88.313,88.27,5.12852296]
[1770580034579,5.12852296,88.31,88.246,102.6]
[1770580034778,5.12852296,88.31,88.175,11.3229034]
[1770580034779,3.52465977,88.279,88.255,11.33069681]
[1770580034984,3.64562477,88.259,88.221,3.46484067]
[1770580035965,3.64562477,88.259,88.223,3.68162531]
[1770580036161,3.5178195,88.269,88.231,3.68162531]
[1770580036483,3.5178195,88.259,88.231,3.68162531]
[1770580036686,3.5178195,88.249,88.222,11.33504114]
[1770580037669,3.5178195,88.239,88.211,11.33636357]
[1770580037972,3.5178195,88.239,88.206,15.01872255]
[1770580038281,3.5178195,88.239,88.207,3.68162531]
[1770580038684,3.5178195,88.239,88.206,11.33709724]
[1770580040287,3.5178195,88.237,88.206,11.33709724]
[1770580042088,28.32619651,88.258,88.2,11.5377518]
[1770580042089,5.12852296,88.23,88.2,11.5377518]
[1770580042271,3.5178195,88.219,88.188,11.33940313]
[1770580042469,3.5178195,88.209,88.182,11.34008862]
[1770580044585,3.5178195,88.199,88.17,0.2]
[1770580045986,3.5178195,88.189,88.17,0.2]
[1770580046187,3.5178195,88.179,88.16,0.2]
[1770580046489,3.5178195,88.169,88.15,0.2]
[1770580047300,39.68343953,88.198,88.13,0.2]
[1770580047301,3.5178195,88.159,88.13,0.2]
[1770580048002,5.13032502,88.195,88.141,3.68162531]
[1770580048003,3.5178195,88.169,88.141,3.68162531]
[1770580049093,3.5178195,88.189,88.161,3.68162531]
[1770580049892,3.5178195,88.206,88.18,5.12852296]
[1770580050078,3.5178195,88.213,88.182,15.02180811]
[1770580050588,3.5178195,88.212,88.182,15.02180811]
[1770580050894,3.5178195,88.212,88.18,5.12852296]
[1770580051196,3.5178195,88.212,88.177,11.34079449]